[Event "World Junior U20 Open 2018"]
[Site "Gebze"]
[Date "2018.09.07"]
[Round "3.63"]
[White "Tuncer, Tuna"]
[Black "Tuna, Alp"]
[Result "1-0"]
[ECO "B11"]
[WhiteElo "2342"]
[BlackElo "2253"]
[Annotator "NA"]
[PlyCount "59"]
[EventDate "2018.09.05"]
[EventType "swiss"]
[EventCountry "TUR"]
[SourceTitle "playchess.com"]
[Source "ChessBase"]
[SourceQuality "1"]
[TimeControl "40/5400+30:1800+30"]

1. e4 {[%emt 0:00:30]} c6 {[%emt 0:00:30]} 2. Nc3 {[%emt 0:00:00]} d5 {[%emt 0:00:30]} 3. Nf3 {[%emt 0:01:00]} Nf6 {[%emt 0:00:00]} 4. e5 {[%emt 0:00:00]} Ne4 {[%emt 0:00:00]} 5. Ne2 {[%emt 0:00:00]} Qb6 {[%emt 0:00:30]} 6. d4 {[%emt 0:00:30]} e6 {[%emt 0:00:00]} 7. Ng3 {[%emt 0:00:00]} c5 {[%emt 0:01:00]} 8. Bd3 {[%emt 0:00:00]} Nxg3 {[%emt 0:03:30]} 9. fxg3 {[%emt 0:00:00]} Nc6 {[%emt 0:16:30]} 10. O-O {[%emt 0:00:00]} h6 {[%emt 0:02:30]} 11. dxc5 {[%emt 0:00:30]} Bxc5+ {[%emt 0:00:30]} 12. Kh1 {[%emt 0:00:30]} Bd7 {[%emt 0:03:30]} 13. c3 {[%emt 0:00:30]} a5 {[%emt 0:03:30]} 14. Qe2 {[%emt 0:01:30]} O-O-O {[%emt 0:18:30]} 15. Bd2 {[%emt 0:05:30]} Qc7 $18 {[%emt 0:12:30]} ({Don't go for} 15... Qxb2 $2 16. Rfb1 $18) 16. b4 {[%emt 0:05:30]} Bb6 {[%emt 0:03:30]} 17. Rfc1 {[%emt 0:20:30]} Kb8 {[%emt 0:05:30]} 18. Rab1 {[%emt 0:10:30]} g5 {[%emt 0:06:30]} 19. b5 {[%emt 0:09:30]} Ne7 {[%emt 0:15:31]} 20. c4 {[%emt 0:00:30]} g4 {[%emt 0:00:03]} 21. Nh4 {[%emt 0:04:30]} Qc5 {[%emt 0:00:35]} 22. Qxg4 {[%emt 0:11:30]} Ka7 {[%emt 0:00:19]} 23. Qe2 {[%emt 0:01:30]} Rc8 {[%emt 0:00:51]} 24. Nf3 {[%emt 0:02:30]} Qa3 {[%emt 0:05:01]} 25. Rc3 {[%emt 0:05:30]} Qa4 {[%emt 0:00:37]} 26. Be3 {[%emt 0:02:36]} Bxe3 {[%emt 0:00:05]} 27. Qxe3+ {[%emt 0:00:30]} b6 {[%emt 0:00:30]} 28. Qc1 {[%emt 0:05:14]} dxc4 {[%emt 0:00:45]} 29. Bc2 {[%emt 0:00:11]} Qxa2 {[%emt 0:00:47]} 30. Ra3 {[%emt 0:00:11]} 1-0

[Event "World Junior U20 Open 2018"]
[Site "Gebze"]
[Date "2018.09.07"]
[Round "3.64"]
[White "Eren, Ataberk"]
[Black "Dedebas, Emre Emin"]
[Result "1-0"]
[ECO "E52"]
[WhiteElo "2180"]
[BlackElo "2334"]
[Annotator "NA"]
[PlyCount "105"]
[EventDate "2018.09.05"]
[EventType "swiss"]
[EventCountry "TUR"]
[SourceTitle "playchess.com"]
[Source "ChessBase"]
[SourceQuality "1"]
[TimeControl "40/5400+30:1800+30"]

1. d4 {[%emt 0:00:30]} Nf6 {[%emt 0:00:30]} 2. c4 {[%emt 0:00:30]} e6 {[%emt 0:00:00]} 3. Nc3 {[%emt 0:00:30]} Bb4 {[%emt 0:00:00]} 4. e3 {[%emt 0:00:30]} O-O {[%emt 0:00:00]} 5. Bd3 {[%emt 0:01:30]} d5 {[%emt 0:01:00]} 6. Nf3 {[%emt 0:01:30]} b6 {[%emt 0:00:30]} 7. O-O {[%emt 0:04:30]} Bb7 {[%emt 0:00:30]} 8. cxd5 {[%emt 0:03:30]} exd5 {[%emt 0:00:30]} 9. a3 {[%emt 0:01:30]} Bd6 {[%emt 0:04:30]} 10. Qc2 {[%emt 0:03:30]} Re8 {[%emt 0:12:30]} 11. Nb5 {[%emt 0:02:30]} Ne4 {[%emt 0:12:30]} 12. Nxd6 {[%emt 0:15:30]} cxd6 {[%emt 0:03:30]} 13. Qb3 {[%emt 0:15:30]} Re6 {[%emt 0:12:30]} 14. Bd2 {[%emt 0:22:30]} Rg6 {[%emt 0:07:30]} 15. Be1 $16 {[%emt 0:02:30]} Nd7 {[%emt 0:15:30]} 16. Rc1 {[%emt 0:03:54]} Nf8 {[%emt 0:01:30]} 17. g3 {[%emt 0:07:45]} Ne6 {[%emt 0:04:30]} 18. Nd2 {[%emt 0:02:37]} Qg5 {[%emt 0:11:29]} 19. Kg2 {[%emt 0:04:12]} Rh6 {[%emt 0:02:35]} 20. Qd1 {[%emt 0:02:52]} Qf5 {[%emt 0:01:52]} 21. h4 {[%emt 0:01:55]} Qf6 {[%emt 0:06:04]} 22. f3 {[%emt 0:00:22]} Nxd2 {[%emt 0:00:48]} 23. Bxd2 {[%emt 0:00:02]} Qe7 {[%emt 0:00:11]} 24. Qe1 {[%emt 0:01:10]} Re8 {[%emt 0:01:10]} 25. Bb5 {[%emt 0:00:05]} Rd8 {[%emt 0:00:00]} 26. Ba4 {[%emt 0:01:02]} Ba6 {[%emt 0:01:12]} 27. Rh1 {[%emt 0:00:05]} Nf8 {[%emt 0:00:06]} 28. Qf2 {[%emt 0:00:39]} Re6 {[%emt 0:00:42]} 29. Rc3 {[%emt 0:00:01]} Qf6 {[%emt 0:00:14]} 30. Bc6 {[%emt 0:00:29]} Re7 {[%emt 0:00:34]} 31. Bxd5 {[%emt 0:00:45]} Ne6 {[%emt 0:00:04]} 32. Rhc1 {[%emt 0:00:07]} h6 {[%emt 0:00:57]} 33. b4 {[%emt 0:00:36]} Nxd4 {[%emt 0:00:32]} 34. Rc7 {[%emt 0:00:30]} Ne6 {[%emt 0:00:30]} 35. Bc3 {[%emt 0:01:02]} Rxc7 {[%emt 0:00:59]} 36. Bxf6 {[%emt 0:00:30]} Rxc1 {[%emt 0:00:00]} 37. Bxd8 {[%emt 0:00:12]} Nxd8 {[%emt 0:00:27]} 38. Qb2 {[%emt 0:01:00]} Rc7 {[%emt 0:00:13]} 39. g4 {[%emt 0:00:15]} Ne6 {[%emt 0:00:28]} 40. Qd2 {[%emt 0:00:00]} Rd7 {[%emt 0:00:00]} 41. Qc2 {[%emt 0:07:53]} Re7 {[%emt 0:02:53]} 42. Qc6 {[%emt 0:04:30]} Nc7 {[%emt 0:00:30]} 43. Be4 {[%emt 0:01:03]} d5 {[%emt 0:02:30]} 44. Qd6 {[%emt 0:04:17]} Re6 {[%emt 0:01:30]} 45. Qd8+ {[%emt 0:00:41]} Re8 {[%emt 0:00:30]} 46. Qxc7 {[%emt 0:00:31]} dxe4 {[%emt 0:00:30]} 47. f4 {[%emt 0:01:57]} Be2 {[%emt 0:10:48]} 48. Kg3 {[%emt 0:00:19]} h5 {[%emt 0:01:04]} 49. gxh5 {[%emt 0:04:26]} Bxh5 {[%emt 0:03:29]} 50. Qxa7 {[%emt 0:00:44]} b5 {[%emt 0:01:17]} 51. a4 {[%emt 0:01:27]} bxa4 {[%emt 0:03:59]} 52. b5 {[%emt 0:00:06]} a3 {[%emt 0:01:46]} 53. b6 {[%emt 0:00:10]} 1-0

[Event "World Junior U20 Open 2018"]
[Site "Gebze"]
[Date "2018.09.07"]
[Round "3.65"]
[White "Urazayev, Arystanbek"]
[Black "Ongut, Tamas Gunes"]
[Result "1/2-1/2"]
[ECO "C77"]
[WhiteElo "2333"]
[BlackElo "2121"]
[Annotator "NA"]
[PlyCount "66"]
[EventDate "2018.09.05"]
[EventType "swiss"]
[EventCountry "TUR"]
[SourceTitle "playchess.com"]
[Source "ChessBase"]
[SourceQuality "1"]
[TimeControl "40/5400+30:1800+30"]

1. e4 {[%emt 0:00:30]} e5 {[%emt 0:00:30]} 2. Nf3 {[%emt 0:00:30]} Nc6 {[%emt 0:00:00]} 3. Bb5 {[%emt 0:00:00]} a6 {[%emt 0:00:00]} 4. Ba4 {[%emt 0:00:00]} Nf6 {[%emt 0:00:30]} 5. d3 {[%emt 0:00:00]} b5 {[%emt 0:00:30]} 6. Bb3 {[%emt 0:00:00]} Be7 {[%emt 0:00:00] LiveBook: 874 Games} 7. Nc3 {[%emt 0:00:00]} d6 {[%emt 0:00:00]} 8. a3 {[%emt 0:00:00] C77: Spanische Partie (Anderssen-Variante)} O-O {[%emt 0:00:00]} 9. Nd5 {[%emt 0:00:30]} Nxd5 {[%emt 0:12:00]} (9... Na5 10. Ba2 Nxd5 11. Bxd5 c6 12. Ba2 Bf6 13. O-O Re8 14. b4 Nb7 15. c4 Be6 {½-½ (23) Rapport,R (2692)-Aronian,L (2785) Sharjah 2017}) 10. Bxd5 {[%emt 0:00:30]} Bd7 {[%emt 0:02:30]} 11. h4 {[%emt 0:00:00]} Rb8 {[%emt 0:38:30]} 12. Ng5 {[%emt 0:02:00]} g6 $146 {[%emt 0:00:30]} (12... Qe8 $14) ({Vorgänger:} 12... Bxg5 13. hxg5 g6 14. f4 exf4 15. Bxf4 Ne5 {1-0 (45) Karthikeyan,M (2578)-Gagare,S (2482) Tarvisio 2017}) 13. Qd2 {[%emt 0:32:30]} Bxg5 {[%emt 0:04:30]} 14. hxg5 {[%emt 0:01:30]} Ne7 {[%emt 0:05:30]} 15. Bb3 {[%emt 0:05:30]} Be6 {[%emt 0:02:30]} 16. f4 {[%emt 0:09:30]} Bxb3 {[%emt 0:05:30]} 17. cxb3 {[%emt 0:00:30]} f5 $11 {[%emt 0:02:30]} 18. gxf6 {[%emt 0:05:30]} Rxf6 {[%emt 0:01:30]} 19. f5 {[%emt 0:05:30]} gxf5 {[%emt 0:03:43]} 20. Qg5+ {[%emt 0:02:30]} Rg6 {[%emt 0:00:07]} 21. Qh5 {[%emt 0:00:30]} f4 {[%emt 0:03:32]} 22. Qxh7+ {[%emt 0:00:30]} Kf8 {[%emt 0:00:04]} 23. Bd2 {[%emt 0:05:30]} Qe8 {[%emt 0:03:56]} 24. Rc1 {[%emt 0:06:30]} Rc8 {[%emt 0:00:18]} 25. Ba5 {[%emt 0:05:15]} c6 {[%emt 0:00:49]} 26. Kf1 {[%emt 0:09:18]} Qf7 {[%emt 0:01:38]} 27. Qh8+ {[%emt 0:01:07]} Qg8 {[%emt 0:04:28]} 28. Be1 {[%emt 0:01:26]} Qxh8 {[%emt 0:02:54]} 29. Rxh8+ {[%emt 0:00:30]} Rg8 {[%emt 0:00:00]} 30. Rh7 {[%emt 0:02:40]} Rg7 {[%emt 0:00:15]} 31. Rh8+ {[%emt 0:00:55]} Rg8 {[%emt 0:00:06]} 32. Rh7 {[%emt 0:01:57]} Rg7 {[%emt 0:00:06]} 33. Rh8+ {[%emt 0:00:00]} Rg8 {[%emt 0:00:13]} 1/2-1/2

[Event "World Junior U20 Open 2018"]
[Site "Gebze"]
[Date "2018.09.07"]
[Round "3.66"]
[White "Petkov, Momchil"]
[Black "Tasdogen, Dincer"]
[Result "1-0"]
[ECO "B15"]
[WhiteElo "2163"]
[BlackElo "2329"]
[Annotator "NA"]
[PlyCount "167"]
[EventDate "2018.09.05"]
[EventType "swiss"]
[EventCountry "TUR"]
[SourceTitle "playchess.com"]
[Source "ChessBase"]
[SourceQuality "1"]
[TimeControl "40/5400+30:1800+30"]

1. e4 {[%emt 0:00:30]} g6 {[%emt 0:00:30]} 2. d4 {[%emt 0:00:00]} Bg7 {[%emt 0:00:00]} 3. Be3 {[%emt 0:01:00]} c6 {[%emt 0:04:00]} 4. Nc3 {[%emt 0:04:30]} d5 {[%emt 0:00:30]} 5. Qd2 {[%emt 0:09:30]} Nf6 {[%emt 0:05:30]} 6. f3 {[%emt 0:04:30] B15: Caro-Kann (Flohr-Variante)} (6. e5 Ng4 7. Bf4 h5 8. Bd3 Nh6 9. Nf3 Bf5 10. O-O Bxd3 11. Qxd3 e6 12. Bg5 Qb6 13. Nh4 Nf5 14. Nxf5 exf5 15. Rfe1 Na6 {1-0 (41) Kumala,A (2220)-Piesik,P (2374) Katowice 2017}) 6... dxe4 {[%emt 0:03:30]} 7. Nxe4 {[%emt 0:00:30]} Nxe4 {[%emt 0:04:30]} 8. fxe4 {[%emt 0:01:30]} e5 {[%emt 0:00:00]} 9. Nf3 {[%emt 0:06:30]} exd4 {[%emt 0:00:00]} 10. O-O-O {[%emt 0:05:30]} c5 {[%emt 0:03:30]} 11. Bh6 {[%emt 0:00:30]} O-O {[%emt 0:02:30]} 12. h4 {[%emt 0:02:30]} Bg4 {[%emt 0:08:30]} 13. Bc4 $146 {[%emt 0:14:30]} ({Vorgänger:} 13. Be2 Nc6 {½-½ (45) Eibl,M (2087)-Hofstetter,H (2128) Immenstadt 2009}) 13... Nc6 {[%emt 0:00:30]} 14. Rdf1 {[%emt 0:06:30]} Rb8 {[%emt 0:10:30]} 15. h5 {[%emt 0:08:30]} gxh5 {[%emt 0:01:30]} 16. Nh4 {[%emt 0:02:30]} Ne7 $2 {[%emt 0:12:30]} (16... Ne5 $1 $11 {and Black has nothing to worry.} 17. Bd5 Kh8) 17. Bxg7 {[%emt 0:05:30]} Kxg7 {[%emt 0:00:00]} 18. Qg5+ {[%emt 0:05:04]} Ng6 {[%emt 0:01:00]} 19. Nf5+ {[%emt 0:00:15]} Kh8 {[%emt 0:06:30]} 20. Qh6 {[%emt 0:01:22]} Qf6 {[%emt 0:02:30]} 21. Rf4 {[%emt 0:02:59]} Bxf5 {[%emt 0:03:30]} 22. exf5 {[%emt 0:00:20]} Qg7 {[%emt 0:02:30]} 23. Qxg7+ {[%emt 0:00:15]} Kxg7 {[%emt 0:00:30]} 24. fxg6 {[%emt 0:00:30]} hxg6 {[%emt 0:00:30]} 25. Re1 {[%emt 0:00:30]} b5 {[%emt 0:00:30]} 26. Bd5 {[%emt 0:00:30]} f5 {[%emt 0:00:30]} 27. Re7+ {[%emt 0:00:30]} Kf6 {[%emt 0:00:30]} 28. Re6+ {[%emt 0:00:30]} Kg5 {[%emt 0:00:30]} 29. Rf3 {[%emt 0:00:30]} h4 {[%emt 0:00:30]} 30. Ra3 {[%emt 0:00:30]} Rfe8 {[%emt 0:00:30]} 31. Rxa7 {[%emt 0:00:30]} Rxe6 {[%emt 0:00:30]} 32. Bxe6 {[%emt 0:00:30]} Kf4 {[%emt 0:00:30]} 33. Rg7 {[%emt 0:04:52]} Kg5 {[%emt 0:07:30]} 34. Rc7 {[%emt 0:01:45]} Re8 {[%emt 0:02:14]} 35. Rc6 {[%emt 0:01:34]} Re7 {[%emt 0:02:23]} 36. Kd2 {[%emt 0:00:41]} c4 {[%emt 0:03:10]} 37. Bd5 {[%emt 0:01:13]} Rh7 {[%emt 0:01:16]} 38. a4 {[%emt 0:07:20]} c3+ {[%emt 0:01:17]} 39. bxc3 {[%emt 0:00:16]} dxc3+ {[%emt 0:00:07]} 40. Rxc3 {[%emt 0:00:38]} bxa4 {[%emt 0:00:00]} 41. Ra3 {[%emt 0:03:56]} Ra7 {[%emt 0:01:33]} 42. Ke3 {[%emt 0:02:30]} Kg4 {[%emt 0:01:30]} 43. Kd4 {[%emt 0:02:30]} Kf4 {[%emt 0:00:30]} 44. c4 {[%emt 0:00:30]} g5 {[%emt 0:00:30]} 45. Kc5 {[%emt 0:02:30]} g4 {[%emt 0:00:30]} 46. Kb6 {[%emt 0:00:00]} Rd7 {[%emt 0:00:30]} 47. Rxa4 {[%emt 0:04:06]} Kg3 {[%emt 0:01:30]} 48. Ra3+ {[%emt 0:01:40]} Kh2 {[%emt 0:00:30]} 49. Kc6 {[%emt 0:02:23]} Rg7 {[%emt 0:00:30]} 50. Kd6 {[%emt 0:05:46]} f4 {[%emt 0:00:30]} 51. c5 {[%emt 0:04:07]} f3 {[%emt 0:09:30]} 52. gxf3 {[%emt 0:00:43]} g3 {[%emt 0:00:30]} 53. f4 {[%emt 0:00:00]} h3 {[%emt 0:07:30]} 54. c6 {[%emt 0:00:37]} g2 {[%emt 0:01:30]} 55. Ra2 {[%emt 0:00:21]} Kg3 {[%emt 0:01:30]} 56. Bxg2 {[%emt 0:01:29]} hxg2 {[%emt 0:00:00]} 57. Rxg2+ {[%emt 0:00:12]} Kxg2 {[%emt 0:00:00]} 58. c7 {[%emt 0:00:00]} Rg8 {[%emt 0:00:30]} 59. f5 {[%emt 0:00:40]} Rf8 {[%emt 0:01:30]} 60. Ke6 {[%emt 0:01:31]} Rc8 {[%emt 0:01:30]} 61. Kd7 {[%emt 0:00:43]} Rf8 {[%emt 0:00:00]} 62. c8=Q {[%emt 0:00:08]} Rxf5 {[%emt 0:00:00]} 63. Qc2+ {[%emt 0:00:17]} Rf2 {[%emt 0:00:00]} 64. Qe4+ {[%emt 0:00:34]} Kg3 {[%emt 0:00:00]} 65. Ke6 {[%emt 0:00:00]} Rf4 {[%emt 0:00:30]} 66. Qe3+ {[%emt 0:00:21]} Rf3 {[%emt 0:00:30]} 67. Qg5+ {[%emt 0:00:14]} Kf2 {[%emt 0:00:00]} 68. Ke5 {[%emt 0:00:06]} Re3+ {[%emt 0:00:00]} 69. Kf4 {[%emt 0:00:41]} Rf3+ {[%emt 0:00:30]} 70. Ke4 {[%emt 0:00:14]} Rg3 {[%emt 0:00:00]} 71. Qd2+ {[%emt 0:00:08]} Kg1 {[%emt 0:00:00]} 72. Kf4 {[%emt 0:00:00]} Rh3 {[%emt 0:00:30]} 73. Qe1+ {[%emt 0:03:29]} Kg2 {[%emt 0:00:30]} 74. Qe2+ {[%emt 0:00:28]} Kg1 {[%emt 0:00:30]} 75. Kg4 {[%emt 0:01:54]} Rh2 {[%emt 0:00:00]} 76. Qd1+ {[%emt 0:00:05]} Kg2 {[%emt 0:00:00]} 77. Qd6 {[%emt 0:01:29]} Kg1 {[%emt 0:00:30]} 78. Qd4+ {[%emt 0:01:06]} Kg2 {[%emt 0:00:00]} 79. Qe4+ {[%emt 0:00:43]} Kf2 {[%emt 0:00:00]} 80. Qf4+ {[%emt 0:00:14]} Kg2 {[%emt 0:00:30]} 81. Qe5 {[%emt 0:01:07]} Kg1 {[%emt 0:00:30]} 82. Kg3 {[%emt 0:00:01]} Rg2+ {[%emt 0:00:30]} 83. Kh3 {[%emt 0:00:11]} Rf2 {[%emt 0:00:30]} 84. Qe1+ {[%emt 0:00:06]} 1-0

[Event "World Junior U20 Open 2018"]
[Site "Gebze"]
[Date "2018.09.07"]
[Round "3.67"]
[White "Sevgi, Volkan"]
[Black "Maltezeanu, Stefan"]
[Result "1-0"]
[ECO "B26"]
[WhiteElo "2323"]
[BlackElo "2089"]
[Annotator "NA"]
[PlyCount "65"]
[EventDate "2018.09.05"]
[EventType "swiss"]
[EventCountry "TUR"]
[SourceTitle "playchess.com"]
[Source "ChessBase"]
[SourceQuality "1"]
[TimeControl "40/5400+30:1800+30"]

1. e4 {[%emt 0:00:30]} c5 {[%emt 0:00:30]} 2. Nc3 {[%emt 0:00:00]} Nc6 {[%emt 0:00:30]} 3. g3 {[%emt 0:00:00]} g6 {[%emt 0:00:30]} 4. Bg2 {[%emt 0:00:00]} Bg7 {[%emt 0:00:00]} 5. d3 {[%emt 0:00:00]} d6 {[%emt 0:00:00]} 6. Be3 {[%emt 0:00:00]} Nf6 {[%emt 0:01:30]} 7. h3 {[%emt 0:01:00]} O-O {[%emt 0:00:30]} 8. Nge2 {[%emt 0:00:00]} Rb8 {[%emt 0:02:30]} 9. f4 {[%emt 0:00:00]} Bd7 {[%emt 0:02:30]} 10. O-O {[%emt 0:00:30]} b5 {[%emt 0:03:30]} 11. Qd2 {[%emt 0:00:00]} b4 {[%emt 0:00:00] B26: Closed Sicilian: 3 g3, lines with early Be3} 12. Nd1 {[%emt 0:00:00]} Qc8 {[%emt 0:03:00]} 13. f5 {[%emt 0:02:30]} Ne5 {[%emt 0:04:30]} 14. g4 {[%emt 0:00:30]} c4 $146 {[%emt 0:09:30]} ({Predecessor:} 14... h5 15. gxh5 Nxh5 16. Bh6 f6 17. Bxg7 Nxg7 18. fxg6 Nxg6 19. Rf3 {0-1 (39) Armas,J (2415)-Groszpeter,A (2480) Cienfuegos 1980}) 15. Bxa7 {[%emt 0:07:30]} Ra8 {[%emt 0:02:30]} 16. Bf2 {[%emt 0:02:30]} cxd3 {[%emt 0:00:30]} 17. cxd3 {[%emt 0:02:30]} b3 {[%emt 0:02:30]} 18. Ne3 {[%emt 0:04:30]} Rxa2 {[%emt 0:01:30]} 19. g5 {[%emt 0:12:30]} (19. Nc3 $16) 19... Nh5 {[%emt 0:02:30]} 20. d4 {[%emt 0:01:30]} Nc4 {[%emt 0:07:30]} 21. Nxc4 {[%emt 0:00:30]} Qxc4 {[%emt 0:00:30]} 22. Rac1 {[%emt 0:00:00]} Qa6 {[%emt 0:01:30]} 23. Nc3 {[%emt 0:01:00]} Ra5 $16 {[%emt 0:07:30]} 24. Bf3 {[%emt 0:00:30]} Rc8 {[%emt 0:11:30]} 25. Bxh5 {[%emt 0:02:30]} gxh5 {[%emt 0:00:30]} 26. Be3 {[%emt 0:05:30]} Bf8 {[%emt 0:12:30]} 27. Qd1 {[%emt 0:12:30]} Qb7 {[%emt 0:05:42]} 28. d5 {[%emt 0:03:30]} f6 {[%emt 0:09:42]} 29. Qxh5 {[%emt 0:01:30]} fxg5 {[%emt 0:00:45]} 30. Qxg5+ {[%emt 0:00:30]} Bg7 {[%emt 0:01:47]} 31. Bd4 {[%emt 0:00:30]} e5 {[%emt 0:00:05]} 32. fxe6 {[%emt 0:00:30]} Be8 {[%emt 0:00:21]} 33. Rf7 {[%emt 0:00:30]} 1-0

[Event "World Junior U20 Open 2018"]
[Site "Gebze"]
[Date "2018.09.07"]
[Round "3.68"]
[White "Kwon, Sehyun"]
[Black "Agibileg, Uurtsaikh"]
[Result "0-1"]
[ECO "B40"]
[WhiteElo "2129"]
[BlackElo "2321"]
[Annotator "NA"]
[PlyCount "62"]
[EventDate "2018.09.05"]
[EventType "swiss"]
[EventCountry "TUR"]
[SourceTitle "playchess.com"]
[Source "ChessBase"]
[SourceQuality "1"]
[TimeControl "40/5400+30:1800+30"]

1. e4 {[%emt 0:00:30]} c5 {[%emt 0:06:30]} 2. Nf3 {[%emt 0:00:00]} e6 {[%emt 0:00:00]} 3. b3 {[%emt 0:01:00]} Nf6 {[%emt 0:02:00]} 4. e5 {[%emt 0:02:30]} Nd5 {[%emt 0:01:30] LiveBook: 265 Games} 5. Bb2 {[%emt 0:06:30]} d6 {[%emt 0:04:30]} 6. c4 {[%emt 0:05:30]} Nb4 {[%emt 0:01:30]} 7. a3 {[%emt 0:07:30]} N4c6 {[%emt 0:00:30]} 8. Be2 {[%emt 0:11:30]} (8. exd6 $1 $11 e5 9. Nc3 (9. Nxe5 Bxd6 10. Nf3 O-O $11)) 8... Nd7 $11 {[%emt 0:03:00]} 9. exd6 {[%emt 0:01:30]} e5 {[%emt 0:04:30]} 10. b4 {[%emt 0:06:30]} Bxd6 {[%emt 0:10:30]} 11. bxc5 {[%emt 0:05:30]} Bxc5 {[%emt 0:01:30]} 12. Nc3 {[%emt 0:01:30]} O-O {[%emt 0:02:30]} 13. Na4 {[%emt 0:10:30]} e4 {[%emt 0:02:30]} 14. Ng1 {[%emt 0:03:30]} Bd4 {[%emt 0:03:30]} 15. Nh3 {[%emt 0:07:30]} Bxb2 {[%emt 0:06:30]} 16. Nxb2 {[%emt 0:01:30]} Nc5 {[%emt 0:00:30]} 17. Na4 {[%emt 0:07:30]} Nxa4 {[%emt 0:02:30]} 18. Qxa4 {[%emt 0:00:30]} Bxh3 {[%emt 0:00:00]} 19. gxh3 {[%emt 0:00:00]} Nd4 {[%emt 0:05:00]} 20. Rg1 {[%emt 0:07:41]} Nxe2 {[%emt 0:05:30]} 21. Kxe2 {[%emt 0:00:30]} Qd3+ {[%emt 0:00:30]} 22. Ke1 {[%emt 0:00:40]} Qxh3 {[%emt 0:01:30]} 23. Qb5 {[%emt 0:02:28]} Qxh2 {[%emt 0:03:30]} 24. Rxg7+ {[%emt 0:01:19]} Kh8 {[%emt 0:01:30]} 25. Qb2 {[%emt 0:01:46]} f6 {[%emt 0:03:30]} 26. Qxb7 {[%emt 0:00:51]} Rg8 {[%emt 0:03:30]} 27. Rb1 {[%emt 0:03:11]} Qh1+ {[%emt 0:06:30]} 28. Ke2 {[%emt 0:00:40]} Qh5+ {[%emt 0:00:30]} 29. Kf1 Rxg7 30. Qxa8+ Rg8 31. Rb8 Qd1# 0-1

[Event "World Junior U20 Open 2018"]
[Site "Gebze"]
[Date "2018.09.07"]
[Round "3.69"]
[White "Gulbeyaz, Emir"]
[Black "De Block, Yordi"]
[Result "1/2-1/2"]
[ECO "D35"]
[WhiteElo "2285"]
[BlackElo "2118"]
[Annotator "NA"]
[PlyCount "133"]
[EventDate "2018.09.05"]
[EventType "swiss"]
[EventCountry "TUR"]
[SourceTitle "playchess.com"]
[Source "ChessBase"]
[SourceQuality "1"]
[TimeControl "40/5400+30:1800+30"]

1. Nf3 {[%emt 0:00:30]} d5 {[%emt 0:00:30]} 2. d4 {[%emt 0:00:30]} Nf6 {[%emt 0:00:30]} 3. c4 {[%emt 0:00:00]} e6 {[%emt 0:00:00]} 4. cxd5 {[%emt 0:00:00]} exd5 {[%emt 0:00:00]} 5. Nc3 $11 {[%emt 0:00:00]} c6 {[%emt 0:00:30]} 6. Qc2 {[%emt 0:00:00]} Bd6 {[%emt 0:00:00]} 7. Bg5 {[%emt 0:00:30]} Bg4 {[%emt 0:02:00]} 8. Ne5 {[%emt 0:00:30]} Bh5 {[%emt 0:01:30]} 9. e3 {[%emt 0:03:30]} Nbd7 {[%emt 0:02:30]} 10. f4 {[%emt 0:05:30]} Be7 {[%emt 0:04:30]} 11. h3 {[%emt 0:02:30]} Nxe5 {[%emt 0:08:30]} 12. dxe5 {[%emt 0:00:30]} Ne4 {[%emt 0:02:30]} 13. Bxe7 {[%emt 0:01:30]} Qxe7 {[%emt 0:01:30]} 14. Nxe4 {[%emt 0:01:30]} Bg6 {[%emt 0:00:30]} 15. f5 {[%emt 0:00:00]} Bxf5 {[%emt 0:00:30]} 16. Nd6+ {[%emt 0:00:00]} Qxd6 {[%emt 0:00:30]} 17. Qxf5 {[%emt 0:00:30]} Qb4+ {[%emt 0:00:30]} 18. Kf2 {[%emt 0:00:00]} Qxb2+ {[%emt 0:01:30]} 19. Be2 {[%emt 0:00:00]} Qb6 {[%emt 0:02:30]} 20. Rab1 {[%emt 0:02:30]} Qc7 {[%emt 0:00:30]} 21. Rb4 {[%emt 0:07:30]} O-O {[%emt 0:02:30]} 22. Rh4 {[%emt 0:00:30]} g6 {[%emt 0:00:30]} 23. Qg5 {[%emt 0:18:30]} Rae8 {[%emt 0:01:30]} 24. Qh6 {[%emt 0:04:30]} f6 {[%emt 0:01:30]} 25. exf6 {[%emt 0:00:30]} Rxf6+ {[%emt 0:00:00]} 26. Bf3 {[%emt 0:00:00]} Rf7 {[%emt 0:04:00]} 27. Rg4 {[%emt 0:07:00]} Qa5 {[%emt 0:05:30]} 28. Re1 {[%emt 0:06:30]} Qxa2+ {[%emt 0:01:30]} 29. Re2 {[%emt 0:00:00]} Qa1 {[%emt 0:02:30]} 30. h4 {[%emt 0:00:00]} Re5 {[%emt 0:20:30]} 31. h5 {[%emt 0:03:30]} Qh1 {[%emt 0:00:30]} 32. Rf4 {[%emt 0:01:30]} Ref5 {[%emt 0:05:30]} 33. Rxf5 {[%emt 0:01:30]} Rxf5 {[%emt 0:00:30]} 34. e4 {[%emt 0:01:30]} Qh4+ {[%emt 0:02:30]} 35. Kg1 {[%emt 0:01:30]} Rg5 {[%emt 0:04:30]} 36. Rf2 {[%emt 0:05:30]} Qf4 {[%emt 0:03:30]} 37. Kf1 {[%emt 0:04:30]} Qc1+ {[%emt 0:03:15]} 38. Ke2 {[%emt 0:01:30]} d4 {[%emt 0:04:31]} 39. Bg4 {[%emt 0:04:43]} d3+ {[%emt 0:02:07]} 40. Kxd3 {[%emt 0:00:30]} Rd5+ {[%emt 0:00:30]} 41. exd5 {[%emt 0:30:30]} Qxh6 {[%emt 0:00:07]} 42. Be6+ {[%emt 0:00:00]} Kh8 {[%emt 0:00:30]} 43. d6 {[%emt 0:00:00]} Qg5 {[%emt 0:07:30]} 44. d7 {[%emt 0:00:00]} Qg3+ {[%emt 0:01:30]} 45. Rf3 {[%emt 0:00:00]} Qd6+ {[%emt 0:00:30]} 46. Kc2 {[%emt 0:00:00]} Qc5+ {[%emt 0:07:30]} 47. Kd2 {[%emt 0:00:00]} Qg5+ {[%emt 0:01:30]} 48. Ke2 {[%emt 0:00:00]} Qxg2+ {[%emt 0:06:30]} 49. Ke3 {[%emt 0:00:00]} Qg5+ {[%emt 0:00:30]} 50. Ke4 {[%emt 0:00:00]} Kg7 {[%emt 0:06:38]} 51. Rf7+ {[%emt 0:00:00]} Kh6 {[%emt 0:00:02]} 52. Rf8 {[%emt 0:00:00]} Qg2+ {[%emt 0:10:10]} 53. Ke5 {[%emt 0:00:00]} Qb2+ {[%emt 0:00:36]} 54. Kd6 {[%emt 0:00:00]} Qa3+ {[%emt 0:00:40]} 55. Kc7 {[%emt 0:00:00]} Qxf8 {[%emt 0:00:00]} 56. hxg6 {[%emt 0:00:00]} hxg6 {[%emt 0:04:33]} 57. d8=Q {[%emt 0:00:00]} Qxd8+ {[%emt 0:00:00]} 58. Kxd8 {[%emt 0:00:00]} c5 {[%emt 0:01:06]} 59. Kc7 {[%emt 0:00:00]} b5 {[%emt 0:00:16]} 60. Kc6 {[%emt 0:00:00]} a6 {[%emt 0:01:10]} 61. Kxc5 {[%emt 0:00:00]} g5 {[%emt 0:00:08]} 62. Kb6 {[%emt 0:00:00]} b4 {[%emt 0:01:00]} 63. Ka5 {[%emt 0:00:00]} g4 {[%emt 0:00:27]} 64. Kxb4 {[%emt 0:00:00]} g3 {[%emt 0:00:00]} 65. Bd5 {[%emt 0:00:00]} a5+ {[%emt 0:00:22]} 66. Kxa5 {[%emt 0:00:00]} g2 {[%emt 0:00:30]} 67. Bxg2 {[%emt 0:00:00]} 1/2-1/2